[Event "Titled Tuesday Blitz December 20 Early 2022"]
[White "sofaceindisguise"]
[Black "Viktorin, Tomas"]
[BlackFideId "328316"]
[WhiteElo "2741"]
[BlackElo "1971"]
[Result "0-1"]
[Round "08"]
[TimeControl "180+2"]
[Date "2022.12.20"]
[WhiteClock "0:00:05"]
[BlackClock "0:01:02"]

1. d4 {[%clk 0:03:00]}  Nf6 {[%clk 0:02:59]} 2. c4 {[%clk 0:03:00]}  g6 {[%clk 0:02:59]} 3. Nf3 {[%clk 0:02:59]}  Bg7 {[%clk 0:02:59]} 4. g3 {[%clk 0:03:00]}  O-O {[%clk 0:02:59]} 5. Bg2 {[%clk 0:03:00]}  d6 {[%clk 0:03:00]} 6. O-O {[%clk 0:03:01]}  Nc6 {[%clk 0:02:59]} 7. Nc3 {[%clk 0:03:01]}  a6 {[%clk 0:02:59]} 8. a4 {[%clk 0:03:00]}  a5 {[%clk 0:02:57]} 9. Bg5 {[%clk 0:03:00]}  h6 {[%clk 0:02:57]} 10. Be3 {[%clk 0:02:54]}  Qe8 {[%clk 0:02:54]} 11. Qc1 {[%clk 0:02:51]}  Kh7 {[%clk 0:02:53]} 12. d5 {[%clk 0:02:44]}  Nb4 {[%clk 0:02:52]} 13. Nd4 {[%clk 0:02:42]}  e5 {[%clk 0:02:49]} 14. Ndb5 {[%clk 0:02:28]}  Qe7 {[%clk 0:02:46]} 15. h3 {[%clk 0:02:23]}  Nh5 {[%clk 0:02:40]} 16. c5 {[%clk 0:02:13]}  f5 {[%clk 0:02:35]} 17. cxd6 {[%clk 0:02:08]}  cxd6 {[%clk 0:02:36]} 18. Bb6 {[%clk 0:02:05]}  Ra6 {[%clk 0:02:24]} 19. Bc7 {[%clk 0:02:00]}  f4 {[%clk 0:02:24]} 20. Ne4 {[%clk 0:01:57]}  Nxd5 {[%clk 0:02:04]} 21. Bxd6 {[%clk 0:01:28]}  Rxd6 {[%clk 0:02:04]} 22. Nbxd6 {[%clk 0:01:19]}  Be6 {[%clk 0:02:00]} 23. g4 {[%clk 0:01:13]}  f3 {[%clk 0:01:54]} 24. exf3 {[%clk 0:01:06]}  Nhf4 {[%clk 0:01:53]} 25. Qc5 {[%clk 0:00:50]}  Qh4 {[%clk 0:01:47]} 26. Ra3 {[%clk 0:00:36]}  Nxh3+ {[%clk 0:01:38]} 27. Bxh3 {[%clk 0:00:37]}  Nf4 {[%clk 0:01:25]} 28. Qe3 {[%clk 0:00:12]}  Qxh3 {[%clk 0:01:24]} 29. Qxf4 {[%clk 0:00:13]}  Rxf4 {[%clk 0:01:23]} 30. Rc1 {[%clk 0:00:11]}  Rxf3 {[%clk 0:01:17]} 31. Rxf3 {[%clk 0:00:10]}  Qxf3 {[%clk 0:01:16]} 32. g5 {[%clk 0:00:11]}  Bh3 {[%clk 0:01:02]} 33. Nf6+ {[%clk 0:00:04]}  Bxf6 {[%clk 0:01:02]} 34. Rc7+ {[%clk 0:00:04]}  Bg7 {[%clk 0:01:02]} 35. gxh6 {[%clk 0:00:05]}  Qg2# {[%clk 0:01:02]} 0-1


[Site "https://www.chess.com"]

[Event "Titled Tuesday Blitz December 20 Early 2022"]
[White "talaicito"]
[Black "kidagent"]
[WhiteElo "2293"]
[BlackElo "2292"]
[Result "1/2-1/2"]
[Round "08"]
[TimeControl "180+2"]
[Date "2022.12.20"]
[WhiteClock "0:00:13"]
[BlackClock "0:00:43"]

1. d4 {[%clk 0:03:00]}  d5 {[%clk 0:02:12]} 2. Bf4 {[%clk 0:03:01]}  Nf6 {[%clk 0:02:11]} 3. Nc3 {[%clk 0:03:01]}  a6 {[%clk 0:02:07]} 4. e3 {[%clk 0:03:02]}  c5 {[%clk 0:02:04]} 5. Nf3 {[%clk 0:03:01]}  cxd4 {[%clk 0:02:03]} 6. exd4 {[%clk 0:03:01]}  Nc6 {[%clk 0:02:04]} 7. Ne5 {[%clk 0:03:01]}  Bf5 {[%clk 0:02:02]} 8. Bd3 {[%clk 0:02:47]}  Bxd3 {[%clk 0:02:01]} 9. Qxd3 {[%clk 0:02:48]}  e6 {[%clk 0:02:02]} 10. O-O {[%clk 0:02:46]}  Bd6 {[%clk 0:01:59]} 11. Rfe1 {[%clk 0:02:45]}  O-O {[%clk 0:01:58]} 12. a3 {[%clk 0:02:32]}  Rc8 {[%clk 0:01:56]} 13. Bg5 {[%clk 0:02:12]}  Rc7 {[%clk 0:01:47]} 14. Ne2 {[%clk 0:02:08]}  h6 {[%clk 0:01:46]} 15. Bh4 {[%clk 0:02:04]}  Nxe5 {[%clk 0:01:42]} 16. dxe5 {[%clk 0:01:57]}  Bxe5 {[%clk 0:01:42]} 17. c3 {[%clk 0:01:55]}  g5 {[%clk 0:01:35]} 18. Bg3 {[%clk 0:01:47]}  Bxg3 {[%clk 0:01:35]} 19. Nxg3 {[%clk 0:01:47]}  Qd6 {[%clk 0:01:30]} 20. Rad1 {[%clk 0:01:36]}  Qb6 {[%clk 0:01:24]} 21. Qf3 {[%clk 0:01:25]}  Kg7 {[%clk 0:01:17]} 22. Re2 {[%clk 0:01:22]}  Rc4 {[%clk 0:01:15]} 23. h3 {[%clk 0:01:11]}  Rf4 {[%clk 0:01:14]} 24. Qd3 {[%clk 0:01:06]}  h5 {[%clk 0:01:12]} 25. Re3 {[%clk 0:00:56]}  h4 {[%clk 0:01:11]} 26. Ne2 {[%clk 0:00:55]}  Re4 {[%clk 0:01:02]} 27. Nd4 {[%clk 0:00:35]}  Qxb2 {[%clk 0:00:58]} 28. Rxe4 {[%clk 0:00:21]}  Nxe4 {[%clk 0:00:56]} 29. f3 {[%clk 0:00:16]}  Nf2 {[%clk 0:00:51]} 30. Qe3 {[%clk 0:00:16]}  Nxd1 {[%clk 0:00:42]} 31. Qxg5+ {[%clk 0:00:16]}  Kh7 {[%clk 0:00:42]} 32. Qh5+ {[%clk 0:00:15]}  Kg7 {[%clk 0:00:42]} 33. Qg5+ {[%clk 0:00:15]}  Kh7 {[%clk 0:00:42]} 34. Qh5+ {[%clk 0:00:13]}  Kg7 {[%clk 0:00:43]} 35. Qg5+ {[%clk 0:00:13]} 1/2-1/2


[Site "https://www.chess.com"]

[Event "Titled Tuesday Blitz December 20 Early 2022"]
[White "temiksmozg"]
[Black "Salomez, Maxime"]
[BlackFideId "652079600"]
[WhiteElo "2549"]
[BlackElo "1359"]
[Result "1-0"]
[Round "08"]
[TimeControl "180+2"]
[Date "2022.12.20"]
[WhiteClock "0:00:09"]
[BlackClock "0:00:01"]

1. e4 {[%clk 0:03:00]}  c5 {[%clk 0:02:58]} 2. Nf3 {[%clk 0:03:00]}  e6 {[%clk 0:02:58]} 3. d3 {[%clk 0:03:00]}  Nc6 {[%clk 0:02:58]} 4. g3 {[%clk 0:03:00]}  g6 {[%clk 0:02:53]} 5. Bg2 {[%clk 0:02:58]}  Bg7 {[%clk 0:02:54]} 6. O-O {[%clk 0:02:58]}  Nge7 {[%clk 0:02:54]} 7. c3 {[%clk 0:02:57]}  O-O {[%clk 0:02:49]} 8. d4 {[%clk 0:02:57]}  cxd4 {[%clk 0:02:48]} 9. Nxd4 {[%clk 0:02:54]}  d5 {[%clk 0:02:48]} 10. Nxc6 {[%clk 0:02:53]}  bxc6 {[%clk 0:02:48]} 11. Bg5 {[%clk 0:02:52]}  Ba6 {[%clk 0:02:47]} 12. Re1 {[%clk 0:02:52]}  Rb8 {[%clk 0:02:46]} 13. Qc1 {[%clk 0:02:48]}  Qd7 {[%clk 0:01:54]} 14. Nd2 {[%clk 0:02:23]}  f5 {[%clk 0:01:48]} 15. Bxe7 {[%clk 0:02:21]}  Qxe7 {[%clk 0:01:46]} 16. exd5 {[%clk 0:02:22]}  e5 {[%clk 0:01:34]} 17. dxc6 {[%clk 0:02:16]}  e4 {[%clk 0:01:34]} 18. Nb3 {[%clk 0:02:16]}  Rfc8 {[%clk 0:01:18]} 19. Nd4 {[%clk 0:02:05]}  Qd6 {[%clk 0:00:41]} 20. Qd2 {[%clk 0:01:54]}  Bd3 {[%clk 0:00:31]} 21. b3 {[%clk 0:01:14]}  Bxd4 {[%clk 0:00:26]} 22. cxd4 {[%clk 0:01:15]}  Rxc6 {[%clk 0:00:25]} 23. Qe3 {[%clk 0:01:13]}  Rd8 {[%clk 0:00:22]} 24. f3 {[%clk 0:00:46]}  Qxd4 {[%clk 0:00:17]} 25. Qxd4 {[%clk 0:00:46]}  Rxd4 {[%clk 0:00:18]} 26. fxe4 {[%clk 0:00:46]}  Bxe4 {[%clk 0:00:15]} 27. Bxe4 {[%clk 0:00:45]}  fxe4 {[%clk 0:00:15]} 28. Kf2 {[%clk 0:00:40]}  Rf6+ {[%clk 0:00:11]} 29. Ke3 {[%clk 0:00:39]}  Rd3+ {[%clk 0:00:10]} 30. Kxe4 {[%clk 0:00:39]}  Rd2 {[%clk 0:00:10]} 31. h4 {[%clk 0:00:25]}  Rff2 {[%clk 0:00:10]} 32. a4 {[%clk 0:00:19]}  Rb2 {[%clk 0:00:09]} 33. Rab1 {[%clk 0:00:18]}  Ra2 {[%clk 0:00:08]} 34. Rbc1 {[%clk 0:00:17]}  Rab2 {[%clk 0:00:04]} 35. Rc3 {[%clk 0:00:17]}  Rg2 {[%clk 0:00:03]} 36. Kd4 {[%clk 0:00:17]}  Kf7 {[%clk 0:00:01]} 37. Rf1+ {[%clk 0:00:17]}  Ke6 {[%clk 0:00:01]} 38. Rff3 {[%clk 0:00:16]}  Kd6 {[%clk 0:00:01]} 39. Rf6+ {[%clk 0:00:16]}  Ke7 {[%clk 0:00:02]} 40. Ra6 {[%clk 0:00:16]}  Rgd2+ {[%clk 0:00:02]} 41. Ke4 {[%clk 0:00:11]}  Rd7 {[%clk 0:00:02]} 42. Kf4 {[%clk 0:00:09]}  Rf2+ {[%clk 0:00:01]} 43. Kg5 {[%clk 0:00:09]}  Rf5+ {[%clk 0:00:01]} 44. Kg4 {[%clk 0:00:09]} 1-0


[Site "https://www.chess.com"]

[Event "Titled Tuesday Blitz December 20 Early 2022"]
[White "Abd El Fatah, Reda Fadel"]
[Black "temiksmozg"]
[WhiteFideId "10600752"]
[WhiteElo "2134"]
[BlackElo "2549"]
[Result "1-0"]
[Round "09"]
[TimeControl "180+2"]
[Date "2022.12.20"]
[WhiteClock "0:00:14"]
[BlackClock "0:00:02"]

1. a3 {[%clk 0:02:56]}  b5 {[%clk 0:02:22]} 2. e4 {[%clk 0:02:24]}  Bb7 {[%clk 0:02:20]} 3. Nc3 {[%clk 0:02:24]}  a6 {[%clk 0:02:20]} 4. d4 {[%clk 0:02:24]}  e6 {[%clk 0:02:20]} 5. f4 {[%clk 0:02:23]}  c5 {[%clk 0:02:20]} 6. d5 {[%clk 0:02:23]}  Nf6 {[%clk 0:02:20]} 7. dxe6 {[%clk 0:02:17]}  fxe6 {[%clk 0:02:19]} 8. e5 {[%clk 0:02:17]}  Nd5 {[%clk 0:02:18]} 9. Nf3 {[%clk 0:02:14]}  Be7 {[%clk 0:02:17]} 10. Nxd5 {[%clk 0:02:12]}  Bxd5 {[%clk 0:02:17]} 11. Bd3 {[%clk 0:02:12]}  c4 {[%clk 0:02:05]} 12. Be2 {[%clk 0:02:11]}  O-O {[%clk 0:02:04]} 13. O-O {[%clk 0:02:09]}  Bc5+ {[%clk 0:02:04]} 14. Kh1 {[%clk 0:02:08]}  Nc6 {[%clk 0:02:04]} 15. c3 {[%clk 0:02:08]}  d6 {[%clk 0:01:53]} 16. exd6 {[%clk 0:01:46]}  Bxd6 {[%clk 0:01:54]} 17. Nd4 {[%clk 0:00:56]}  Qc7 {[%clk 0:01:17]} 18. Bf3 {[%clk 0:00:53]}  Bxf3 {[%clk 0:01:07]} 19. Rxf3 {[%clk 0:00:45]}  Nxd4 {[%clk 0:01:05]} 20. Qxd4 {[%clk 0:00:44]}  Bc5 {[%clk 0:01:05]} 21. Qe4 {[%clk 0:00:42]}  Qd7 {[%clk 0:00:34]} 22. Be3 {[%clk 0:00:40]}  Rac8 {[%clk 0:00:34]} 23. Re1 {[%clk 0:00:37]}  Rfe8 {[%clk 0:00:27]} 24. h3 {[%clk 0:00:32]}  Qd5 {[%clk 0:00:22]} 25. Bxc5 {[%clk 0:00:30]}  Qxe4 {[%clk 0:00:19]} 26. Rxe4 {[%clk 0:00:31]}  Rxc5 {[%clk 0:00:19]} 27. Rfe3 {[%clk 0:00:31]}  Kf7 {[%clk 0:00:18]} 28. g4 {[%clk 0:00:31]}  e5 {[%clk 0:00:14]} 29. fxe5 {[%clk 0:00:24]}  Ke6 {[%clk 0:00:14]} 30. Kg2 {[%clk 0:00:22]}  Rf8 {[%clk 0:00:13]} 31. Rd4 {[%clk 0:00:22]}  Rxe5 {[%clk 0:00:12]} 32. Rxe5+ {[%clk 0:00:22]}  Kxe5 {[%clk 0:00:13]} 33. Rd7 {[%clk 0:00:22]}  g5 {[%clk 0:00:07]} 34. Re7+ {[%clk 0:00:20]}  Kf4 {[%clk 0:00:02]} 35. Rxh7 {[%clk 0:00:19]}  Rd8 {[%clk 0:00:03]} 36. Rf7+ {[%clk 0:00:20]}  Ke3 {[%clk 0:00:03]} 37. Rf3+ {[%clk 0:00:20]}  Ke4 {[%clk 0:00:02]} 38. Rf2 {[%clk 0:00:21]}  Rd3 {[%clk 0:00:02]} 39. Re2+ {[%clk 0:00:21]}  Kf4 {[%clk 0:00:02]} 40. Rf2+ {[%clk 0:00:20]}  Ke4 {[%clk 0:00:02]} 41. Kh2 {[%clk 0:00:20]}  Ke3 {[%clk 0:00:02]} 42. Kg3 {[%clk 0:00:20]}  Ke4+ {[%clk 0:00:02]} 43. Kg2 {[%clk 0:00:20]}  Re3 {[%clk 0:00:02]} 44. Kf1 {[%clk 0:00:17]}  Rxh3 {[%clk 0:00:01]} 45. Ke2 {[%clk 0:00:17]}  Re3+ {[%clk 0:00:02]} 46. Kd2 {[%clk 0:00:17]}  Rd3+ {[%clk 0:00:02]} 47. Kc2 {[%clk 0:00:16]}  Rf3 {[%clk 0:00:02]} 48. Re2+ {[%clk 0:00:16]}  Kf4 {[%clk 0:00:03]} 49. Re6 {[%clk 0:00:17]}  Kxg4 {[%clk 0:00:03]} 50. Rxa6 {[%clk 0:00:18]}  Rf5 {[%clk 0:00:03]} 51. Kd2 {[%clk 0:00:16]}  Kf3 {[%clk 0:00:03]} 52. Ke1 {[%clk 0:00:17]}  g4 {[%clk 0:00:03]} 53. Kf1 {[%clk 0:00:17]}  g3 {[%clk 0:00:03]} 54. Rg6 {[%clk 0:00:17]}  Rf4 {[%clk 0:00:03]} 55. Rg5 {[%clk 0:00:16]}  Re4 {[%clk 0:00:03]} 56. Rf5+ {[%clk 0:00:15]}  Rf4 {[%clk 0:00:01]} 57. Rxb5 {[%clk 0:00:15]}  Ke3+ {[%clk 0:00:01]} 58. Kg2 {[%clk 0:00:15]}  Kd3 {[%clk 0:00:02]} 59. Kxg3 {[%clk 0:00:15]}  Rf7 {[%clk 0:00:02]} 60. Rb4 {[%clk 0:00:14]}  Rf8 {[%clk 0:00:02]} 61. Kg4 {[%clk 0:00:14]}  Rf7 {[%clk 0:00:02]} 62. a4 {[%clk 0:00:14]}  Rf8 {[%clk 0:00:02]} 63. a5 {[%clk 0:00:14]}  Ra8 {[%clk 0:00:02]} 64. Rb5 {[%clk 0:00:14]}  Ke4 {[%clk 0:00:02]} 65. Kg5 {[%clk 0:00:14]}  Ra6 {[%clk 0:00:03]} 66. Rc5 {[%clk 0:00:12]}  Kd3 {[%clk 0:00:03]} 67. Kf4 {[%clk 0:00:12]}  Kc2 {[%clk 0:00:02]} 68. Rb5 {[%clk 0:00:13]}  Kd3 {[%clk 0:00:02]} 69. Ke5 {[%clk 0:00:14]}  Rh6 {[%clk 0:00:03]} 70. Kd5 {[%clk 0:00:14]}  Kc2 {[%clk 0:00:02]} 71. Kxc4 {[%clk 0:00:13]}  Rh4+ {[%clk 0:00:02]} 72. Kc5 {[%clk 0:00:14]} 1-0


[Site "https://www.chess.com"]

[Event "Titled Tuesday Blitz December 20 Early 2022"]
[White "Abundo, Casto"]
[Black "Oleksandr_Bortnyk"]
[WhiteFideId "5200512"]
[WhiteElo "2175"]
[BlackElo "2984"]
[Result "1/2-1/2"]
[Round "09"]
[TimeControl "180+2"]
[Date "2022.12.20"]
[WhiteClock "0:00:06"]
[BlackClock "0:00:02"]

1. e4 {[%clk 0:03:00]}  Nf6 {[%clk 0:02:59]} 2. e5 {[%clk 0:02:59]}  Nd5 {[%clk 0:03:00]} 3. d4 {[%clk 0:02:59]}  d6 {[%clk 0:03:00]} 4. c4 {[%clk 0:03:00]}  Nb6 {[%clk 0:03:00]} 5. f4 {[%clk 0:03:01]}  dxe5 {[%clk 0:03:01]} 6. fxe5 {[%clk 0:03:02]}  Bf5 {[%clk 0:03:01]} 7. Nc3 {[%clk 0:03:02]}  e6 {[%clk 0:03:02]} 8. Be3 {[%clk 0:02:53]}  Bb4 {[%clk 0:03:02]} 9. Nf3 {[%clk 0:02:43]}  c5 {[%clk 0:03:02]} 10. Be2 {[%clk 0:02:21]}  Nc6 {[%clk 0:02:57]} 11. O-O {[%clk 0:02:08]}  cxd4 {[%clk 0:02:57]} 12. Nxd4 {[%clk 0:02:08]}  O-O {[%clk 0:02:52]} 13. Nxf5 {[%clk 0:02:02]}  exf5 {[%clk 0:02:47]} 14. Rxf5 {[%clk 0:01:53]}  Bxc3 {[%clk 0:02:46]} 15. bxc3 {[%clk 0:01:53]}  Qe7 {[%clk 0:02:44]} 16. Qd6 {[%clk 0:01:33]}  Rfd8 {[%clk 0:02:39]} 17. Qxe7 {[%clk 0:01:29]}  Nxe7 {[%clk 0:02:40]} 18. Rff1 {[%clk 0:01:26]}  Rac8 {[%clk 0:02:39]} 19. Rab1 {[%clk 0:01:22]}  Ng6 {[%clk 0:02:22]} 20. Bd4 {[%clk 0:01:04]}  Re8 {[%clk 0:02:13]} 21. c5 {[%clk 0:01:00]}  Nd7 {[%clk 0:01:45]} 22. Rxb7 {[%clk 0:00:57]}  Ndxe5 {[%clk 0:01:24]} 23. Bb5 {[%clk 0:00:42]}  Red8 {[%clk 0:01:20]} 24. Rxa7 {[%clk 0:00:35]}  f6 {[%clk 0:01:21]} 25. a4 {[%clk 0:00:32]}  h5 {[%clk 0:01:16]} 26. a5 {[%clk 0:00:22]}  Rb8 {[%clk 0:01:17]} 27. Ba4 {[%clk 0:00:18]}  Rb2 {[%clk 0:01:13]} 28. a6 {[%clk 0:00:17]}  Nh4 {[%clk 0:01:07]} 29. c6 {[%clk 0:00:16]}  Rxg2+ {[%clk 0:01:01]} 30. Kh1 {[%clk 0:00:16]}  Ng4 {[%clk 0:00:52]} 31. Bg1 {[%clk 0:00:14]}  Rdd2 {[%clk 0:00:23]} 32. Bb3+ {[%clk 0:00:13]}  Kh7 {[%clk 0:00:23]} 33. Bd5 {[%clk 0:00:14]}  Rxd5 {[%clk 0:00:13]} 34. c7 {[%clk 0:00:10]}  Rdd2 {[%clk 0:00:02]} 35. c8=Q {[%clk 0:00:05]}  Rxg1+ {[%clk 0:00:03]} 36. Kxg1 {[%clk 0:00:04]}  Rg2+ {[%clk 0:00:03]} 37. Kh1 {[%clk 0:00:04]}  Rxh2+ {[%clk 0:00:04]} 38. Kg1 {[%clk 0:00:05]}  Rg2+ {[%clk 0:00:05]} 39. Kh1 {[%clk 0:00:05]}  Rh2+ {[%clk 0:00:03]} 40. Kg1 {[%clk 0:00:05]}  Rg2+ {[%clk 0:00:03]} 41. Kh1 {[%clk 0:00:06]}  Rh2+ {[%clk 0:00:02]} 1/2-1/2


[Site "https://www.chess.com"]

[Event "Titled Tuesday Blitz December 20 Early 2022"]
[White "Aishath, Aika"]
[Black "alexrustemov"]
[WhiteFideId "16702026"]
[WhiteElo "2770"]
[BlackElo "2891"]
[Result "0-1"]
[Round "09"]
[TimeControl "180+2"]
[Date "2022.12.20"]
[WhiteClock "0:00:03"]
[BlackClock "0:00:19"]

1. d4 {[%clk 0:03:00]}  g6 {[%clk 0:02:53]} 2. e4 {[%clk 0:02:58]}  Bg7 {[%clk 0:02:53]} 3. Nc3 {[%clk 0:02:58]}  d6 {[%clk 0:02:53]} 4. f4 {[%clk 0:02:58]}  Nf6 {[%clk 0:02:53]} 5. Bd3 {[%clk 0:02:58]}  O-O {[%clk 0:02:47]} 6. Nf3 {[%clk 0:02:57]}  Bg4 {[%clk 0:02:40]} 7. Be3 {[%clk 0:02:49]}  Na6 {[%clk 0:02:40]} 8. O-O {[%clk 0:02:45]}  Nd7 {[%clk 0:02:38]} 9. a3 {[%clk 0:02:37]}  c5 {[%clk 0:02:36]} 10. d5 {[%clk 0:02:34]}  Nc7 {[%clk 0:02:35]} 11. h3 {[%clk 0:02:31]}  Bxf3 {[%clk 0:02:34]} 12. Rxf3 {[%clk 0:02:23]}  a6 {[%clk 0:02:27]} 13. a4 {[%clk 0:02:22]}  b6 {[%clk 0:02:22]} 14. Qe2 {[%clk 0:02:19]}  Qc8 {[%clk 0:02:22]} 15. h4 {[%clk 0:02:16]}  Nf6 {[%clk 0:02:18]} 16. f5 {[%clk 0:02:14]}  b5 {[%clk 0:02:11]} 17. axb5 {[%clk 0:01:53]}  axb5 {[%clk 0:02:12]} 18. Rxa8 {[%clk 0:01:53]}  Qxa8 {[%clk 0:02:12]} 19. Nxb5 {[%clk 0:01:35]}  Nxb5 {[%clk 0:02:11]} 20. Bxb5 {[%clk 0:01:36]}  Qa1+ {[%clk 0:02:05]} 21. Rf1 {[%clk 0:01:31]}  Qxb2 {[%clk 0:02:05]} 22. fxg6 {[%clk 0:01:30]}  hxg6 {[%clk 0:02:05]} 23. Bd3 {[%clk 0:01:21]}  c4 {[%clk 0:01:50]} 24. Bxc4 {[%clk 0:01:21]}  Nxe4 {[%clk 0:01:50]} 25. Qd3 {[%clk 0:01:07]}  f5 {[%clk 0:01:32]} 26. Bb3 {[%clk 0:00:44]}  Qf6 {[%clk 0:01:31]} 27. Bg5 {[%clk 0:00:23]}  Nxg5 {[%clk 0:01:30]} 28. hxg5 {[%clk 0:00:24]}  Qxg5 {[%clk 0:01:30]} 29. Re1 {[%clk 0:00:21]}  Bf6 {[%clk 0:01:21]} 30. Ba4 {[%clk 0:00:17]}  Kg7 {[%clk 0:01:18]} 31. Bd7 {[%clk 0:00:14]}  Rh8 {[%clk 0:01:18]} 32. Rd1 {[%clk 0:00:07]}  Qh4 {[%clk 0:01:16]} 33. Qf3 {[%clk 0:00:04]}  Qc4 {[%clk 0:01:07]} 34. Qd3 {[%clk 0:00:04]}  Qc5+ {[%clk 0:01:06]} 35. Kf1 {[%clk 0:00:04]}  Rh1+ {[%clk 0:01:05]} 36. Ke2 {[%clk 0:00:04]}  Rh2 {[%clk 0:01:03]} 37. Kf1 {[%clk 0:00:04]}  Qb4 {[%clk 0:00:54]} 38. Be6 {[%clk 0:00:03]}  Qh4 {[%clk 0:00:51]} 39. Qf3 {[%clk 0:00:02]}  Rh1+ {[%clk 0:00:49]} 40. Ke2 {[%clk 0:00:02]}  Qc4+ {[%clk 0:00:46]} 41. Qd3 {[%clk 0:00:02]}  Qg4+ {[%clk 0:00:37]} 42. Qf3 {[%clk 0:00:03]}  Qxf3+ {[%clk 0:00:26]} 43. gxf3 {[%clk 0:00:03]}  Rh2+ {[%clk 0:00:26]} 44. Kd3 {[%clk 0:00:04]}  Rf2 {[%clk 0:00:26]} 45. Ra1 {[%clk 0:00:02]}  Rxf3+ {[%clk 0:00:26]} 46. Ke2 {[%clk 0:00:02]}  Rc3 {[%clk 0:00:25]} 47. Ra8 {[%clk 0:00:02]}  Rxc2+ {[%clk 0:00:24]} 48. Kf3 {[%clk 0:00:03]}  Rc3+ {[%clk 0:00:24]} 49. Ke2 {[%clk 0:00:03]}  Kh6 {[%clk 0:00:22]} 50. Rg8 {[%clk 0:00:02]}  Rg3 {[%clk 0:00:22]} 51. Bf7 {[%clk 0:00:02]}  Be5 {[%clk 0:00:21]} 52. Kf2 {[%clk 0:00:03]}  f4 {[%clk 0:00:20]} 53. Be8 {[%clk 0:00:02]}  Bd4+ {[%clk 0:00:20]} 54. Ke2 {[%clk 0:00:02]}  f3+ {[%clk 0:00:21]} 55. Kd3 {[%clk 0:00:02]}  f2+ {[%clk 0:00:20]} 56. Kxd4 {[%clk 0:00:03]}  f1=Q {[%clk 0:00:19]} 0-1


[Site "https://www.chess.com"]

[Event "Titled Tuesday Blitz December 20 Early 2022"]
[White "Alibaev, Akbar"]
[Black "Karjakin, Sergey"]
[WhiteFideId "14200325"]
[BlackFideId "14109603"]
[WhiteElo "2295"]
[BlackElo "2747"]
[Result "1-0"]
[Round "09"]
[TimeControl "180+2"]
[Date "2022.12.20"]
[WhiteClock "0:00:29"]
[BlackClock "0:00:05"]

1. e4 {[%clk 0:03:00]}  c5 {[%clk 0:02:27]} 2. Nf3 {[%clk 0:03:00]}  d6 {[%clk 0:02:26]} 3. d4 {[%clk 0:03:00]}  cxd4 {[%clk 0:02:27]} 4. Nxd4 {[%clk 0:03:01]}  Nf6 {[%clk 0:02:28]} 5. Nc3 {[%clk 0:03:01]}  a6 {[%clk 0:02:29]} 6. Bg5 {[%clk 0:03:02]}  e6 {[%clk 0:02:29]} 7. f4 {[%clk 0:03:02]}  Be7 {[%clk 0:02:26]} 8. Qf3 {[%clk 0:03:03]}  Qc7 {[%clk 0:02:27]} 9. O-O-O {[%clk 0:03:02]}  Nbd7 {[%clk 0:02:26]} 10. g4 {[%clk 0:03:01]}  b5 {[%clk 0:02:25]} 11. Bxf6 {[%clk 0:03:01]}  Nxf6 {[%clk 0:02:25]} 12. g5 {[%clk 0:03:01]}  Nd7 {[%clk 0:02:26]} 13. f5 {[%clk 0:03:01]}  O-O {[%clk 0:02:26]} 14. Rg1 {[%clk 0:03:00]}  b4 {[%clk 0:02:10]} 15. Nce2 {[%clk 0:02:53]}  e5 {[%clk 0:01:49]} 16. f6 {[%clk 0:02:46]}  exd4 {[%clk 0:01:49]} 17. fxe7 {[%clk 0:02:45]}  Re8 {[%clk 0:01:49]} 18. Nxd4 {[%clk 0:02:45]}  Ne5 {[%clk 0:01:50]} 19. Qf4 {[%clk 0:02:44]}  Be6 {[%clk 0:01:50]} 20. Nf5 {[%clk 0:02:35]}  Rac8 {[%clk 0:01:42]} 21. Rg2 {[%clk 0:02:34]}  b3 {[%clk 0:01:17]} 22. axb3 {[%clk 0:02:18]}  d5 {[%clk 0:01:07]} 23. Kb1 {[%clk 0:02:10]}  Bxf5 {[%clk 0:00:39]} 24. exf5 {[%clk 0:02:07]}  Qxe7 {[%clk 0:00:39]} 25. f6 {[%clk 0:02:04]}  Qc5 {[%clk 0:00:39]} 26. fxg7 {[%clk 0:02:03]}  Ng6 {[%clk 0:00:34]} 27. Qd2 {[%clk 0:01:52]}  a5 {[%clk 0:00:28]} 28. Bd3 {[%clk 0:01:50]}  Rcd8 {[%clk 0:00:22]} 29. h4 {[%clk 0:01:50]}  Kxg7 {[%clk 0:00:20]} 30. h5 {[%clk 0:01:49]}  Ne5 {[%clk 0:00:20]} 31. Bf5 {[%clk 0:01:44]}  d4 {[%clk 0:00:20]} 32. Bd3 {[%clk 0:01:18]}  a4 {[%clk 0:00:20]} 33. bxa4 {[%clk 0:01:17]}  Rb8 {[%clk 0:00:20]} 34. g6 {[%clk 0:00:53]}  fxg6 {[%clk 0:00:20]} 35. hxg6 {[%clk 0:00:53]}  h5 {[%clk 0:00:20]} 36. Rg5 {[%clk 0:00:46]}  Rxb2+ {[%clk 0:00:17]} 37. Kxb2 {[%clk 0:00:44]}  Rb8+ {[%clk 0:00:18]} 38. Ka2 {[%clk 0:00:42]}  Qd5+ {[%clk 0:00:18]} 39. Ka1 {[%clk 0:00:38]}  Qc5 {[%clk 0:00:18]} 40. Bb5 {[%clk 0:00:35]}  Qa3+ {[%clk 0:00:10]} 41. Kb1 {[%clk 0:00:35]}  Qxa4 {[%clk 0:00:10]} 42. Rxe5 {[%clk 0:00:28]}  Rxb5+ {[%clk 0:00:04]} 43. Rxb5 {[%clk 0:00:29]}  Qxb5+ {[%clk 0:00:05]} 44. Kc1 {[%clk 0:00:29]} 1-0


[Site "https://www.chess.com"]

[Event "Titled Tuesday Blitz December 20 Early 2022"]
[White "Alphafischer2019"]
[Black "Toh, Terry"]
[BlackFideId "5800323"]
[WhiteElo "2543"]
[BlackElo "2394"]
[Result "1-0"]
[Round "09"]
[TimeControl "180+2"]
[Date "2022.12.20"]
[WhiteClock "0:00:13"]
[BlackClock "0:01:09"]

1. Nf3 {[%clk 0:03:00]}  Nf6 {[%clk 0:02:59]} 2. g3 {[%clk 0:03:01]}  d5 {[%clk 0:02:58]} 3. Bg2 {[%clk 0:03:00]}  g6 {[%clk 0:02:58]} 4. O-O {[%clk 0:03:00]}  Bg7 {[%clk 0:02:59]} 5. d4 {[%clk 0:03:01]}  O-O {[%clk 0:02:59]} 6. c4 {[%clk 0:03:01]}  dxc4 {[%clk 0:02:59]} 7. Na3 {[%clk 0:02:58]}  Nc6 {[%clk 0:02:59]} 8. Nxc4 {[%clk 0:02:56]}  Be6 {[%clk 0:03:00]} 9. Nce5 {[%clk 0:02:53]}  Bd5 {[%clk 0:02:53]} 10. Bf4 {[%clk 0:02:47]}  a5 {[%clk 0:02:52]} 11. Rc1 {[%clk 0:02:41]}  e6 {[%clk 0:02:38]} 12. Qa4 {[%clk 0:02:23]}  Nd7 {[%clk 0:02:24]} 13. Nxd7 {[%clk 0:01:38]}  Qxd7 {[%clk 0:02:24]} 14. Rfd1 {[%clk 0:01:38]}  Rfd8 {[%clk 0:02:19]} 15. e3 {[%clk 0:01:22]}  h6 {[%clk 0:02:18]} 16. h4 {[%clk 0:01:10]}  Qe7 {[%clk 0:02:16]} 17. a3 {[%clk 0:00:58]}  Rd7 {[%clk 0:01:46]} 18. g4 {[%clk 0:00:30]}  Rad8 {[%clk 0:01:38]} 19. Bg3 {[%clk 0:00:28]}  e5 {[%clk 0:01:34]} 20. dxe5 {[%clk 0:00:19]}  Nxe5 {[%clk 0:01:29]} 21. Nxe5 {[%clk 0:00:19]}  Bxe5 {[%clk 0:01:24]} 22. Bxe5 {[%clk 0:00:15]}  Qxe5 {[%clk 0:01:15]} 23. Rc5 {[%clk 0:00:15]}  c6 {[%clk 0:01:15]} 24. Qxa5 {[%clk 0:00:14]}  Bxg2 {[%clk 0:01:10]} 25. Rxe5 {[%clk 0:00:13]}  Rxd1+ {[%clk 0:01:09]} 26. Kxg2 {[%clk 0:00:13]} 1-0


[Site "https://www.chess.com"]